fUST/lending_fUST_20240418
["ID","MTS","AMOUNT","RATE_DAILY","PERIOD"]
[322834318,1713375062401,-709.86,0.00035799,40]
[322834319,1713375062410,-709.86,0.00035799,40]
[322834320,1713375062419,-709.86,0.00035799,40]
[322834321,1713375062429,-500.0,0.00035799,40]
[322834322,1713375062438,-709.86,0.00035799,40]
[322834323,1713375062449,-500.0,0.00035799,40]
[322834324,1713375062458,-709.86,0.00035799,40]
[322834325,1713375062468,-500.0,0.00035799,40]
[322834326,1713375062477,-709.86,0.00035799,40]
[322834327,1713375062486,-709.86,0.00035799,40]
[322834328,1713375062496,-500.0,0.00035799,40]
[322834329,1713375062505,-709.86,0.00035799,40]
[322834330,1713375062514,-500.0,0.00035799,40]
[322834331,1713375062522,-709.86,0.00035799,40]
[322834332,1713375062531,-500.0,0.00035799,40]
[322834333,1713375062540,-709.86,0.00035799,40]
[322834334,1713375062549,-668.56,0.00035799,40]
[322834335,1713375062558,-635.79,0.00035799,40]
[322834336,1713375062568,-709.86,0.00035799,40]
[322834337,1713375062577,-500.0,0.00035799,40]
[322834338,1713375062586,-668.56,0.00035799,40]
[322834339,1713375062596,-709.86,0.00035799,40]
[322834340,1713375062605,-500.0,0.00035799,40]
[322834341,1713375062614,-668.56,0.00035799,40]
[322834342,1713375062623,-500.0,0.00035799,40]
[322834343,1713375062633,-668.56,0.00035799,40]
[322834344,1713375062642,-500.0,0.00035799,40]
[322834345,1713375062650,-709.86,0.00035799,40]
[322834346,1713375062659,-668.56,0.00035799,40]
[322834347,1713375062668,-500.0,0.00035799,40]
[322834348,1713375062677,-709.86,0.00035799,40]
[322834349,1713375062686,-668.56,0.00035799,40]
[322834350,1713375062698,-709.86,0.00035799,40]
[322834351,1713375062708,-668.56,0.00035799,40]
[322834352,1713375062717,-709.86,0.00035799,40]
[322834353,1713375062726,-668.56,0.00035799,40]
[322834354,1713375062736,-500.0,0.00035799,40]
[322834355,1713375062745,-709.86,0.00035799,40]
[322834356,1713375062754,-500.0,0.00035799,40]
[322834357,1713375062763,-709.86,0.00035799,40]
[322834358,1713375062772,-500.0,0.00035799,40]
[322834359,1713375062781,-709.86,0.00035799,40]
[322834360,1713375062790,-500.0,0.00035799,40]
[322834361,1713375062799,-500.0,0.00035799,40]
[322834362,1713375062808,-709.99570969,0.00035799,40]
[322834363,1713375062817,-411.0879473,0.00035799,40]
[322834364,1713375062826,-500.0,0.00035799,40]
[322834365,1713375062835,-500.0,0.00035799,40]
[322834366,1713375062844,-500.0,0.00035799,40]
[322834367,1713375062853,-433.29600811,0.00035799,40]
[322834368,1713375062862,-668.56,0.00035799,40]
[322834369,1713375062871,-668.56,0.00035799,40]
[322834370,1713375062880,-668.56,0.00035799,40]
[322834371,1713375062890,-668.56,0.00035799,40]
[322834372,1713375062899,-668.56,0.00035799,40]
[322834373,1713375062908,-668.56,0.00035799,40]
[322834374,1713375062917,-668.56,0.00035799,40]
[322834375,1713375062927,-500.0,0.00035799,40]
[322834376,1713375062936,-900.36,0.00035799,40]
[322834377,1713375062948,-668.56,0.00035799,40]
[322834378,1713375062958,-900.36,0.00035799,40]
[322834379,1713375062967,-500.0,0.00035799,40]
[322834380,1713375062976,-668.56,0.00035799,40]
[322834381,1713375062985,-900.36,0.00035799,40]
[322834382,1713375062995,-500.0,0.00035799,40]
[322834383,1713375063004,-668.56,0.00035799,40]
[322834384,1713375063013,-900.36,0.00035799,40]
[322834385,1713375063022,-500.0,0.00035799,40]
[322834386,1713375063031,-668.56,0.00035799,40]
[322834387,1713375063040,-500.0,0.00035799,40]
[322834388,1713375063049,-500.0,0.00035799,40]
[322834389,1713375063058,-900.36,0.00035799,40]
[322834390,1713375063068,-668.56,0.00035799,40]
[322834391,1713375063077,-201.69957922,0.00035799,40]
[322834392,1713375063086,-900.36,0.00035799,40]
[322834393,1713375063095,-668.56,0.00035799,40]
[322834394,1713375063104,-900.36,0.00035799,40]
[322834395,1713375063113,-668.56,0.00035799,40]
[322834396,1713375063122,-668.56,0.00035799,40]
[322834397,1713375063131,-900.36,0.00035799,40]
[322834398,1713375063141,-668.77019707,0.00035799,40]
[322834399,1713375063150,-900.36,0.00035799,40]
[322834400,1713375063162,-900.36,0.00035799,40]
[322834401,1713375063171,-900.36,0.00035799,40]
[322834402,1713375063180,-900.36,0.00035799,40]
[322834403,1713375063191,-900.36,0.00035799,40]
[322834404,1713375063203,-900.36,0.00035799,40]
[322834405,1713375063213,-900.36,0.00035799,40]
[322834406,1713375063222,-900.36,0.00035799,40]
[322834407,1713375063235,-900.36,0.00035799,40]
[322834408,1713375063245,-900.36,0.00035799,40]
[322834409,1713375063255,-900.36,0.00035799,40]
[322834410,1713375063264,-900.36,0.00035799,40]
[322834411,1713375063273,-900.36,0.00035799,40]
[322834412,1713375063282,-900.36,0.00035799,40]
[322834413,1713375063292,-900.36,0.00035799,40]
[322834414,1713375063301,-502.25731638,0.00035799,40]
[322834415,1713375063310,-900.46181064,0.00035799,40]
[322834416,1713375063320,-500.0,0.00035799,40]
[322834417,1713375063329,-500.0,0.00035799,40]
[322834418,1713375063338,-500.0,0.00035799,40]
[322834419,1713375063348,-500.0,0.00035799,40]
[322834420,1713375063358,-500.0,0.00035799,40]
[322834421,1713375063367,-500.0,0.00035799,40]
[322834422,1713375063376,-500.0,0.00035799,40]
[322834423,1713375063386,-500.0,0.00035799,40]
[322834424,1713375063395,-500.0,0.00035799,40]
[322834425,1713375063404,-882.29,0.00035799,40]
[322834426,1713375063414,-229.955526,0.00035799,40]
[322834427,1713375063424,-882.29,0.00035799,40]
[322834428,1713375063433,-508.10619895,0.00035799,40]
[322834429,1713375063442,-882.29,0.00035799,40]
[322834430,1713375063454,-882.29,0.00035799,40]
[322834431,1713375063463,-882.29,0.00035799,40]
[322834432,1713375063473,-882.29,0.00035799,40]
[322834433,1713375063482,-882.29,0.00035799,40]
[322834434,1713375063490,-882.29,0.00035799,40]
[322834435,1713375063499,-882.29,0.00035799,40]
[322834436,1713375063509,-882.29,0.00035799,40]
[322834437,1713375063520,-882.29,0.00035799,40]
[322834438,1713375063530,-882.29,0.00035799,40]
[322834439,1713375063540,-882.29,0.00035799,40]
[322834440,1713375063550,-882.29,0.00035799,40]
[322834441,1713375063560,-500.0,0.00035799,40]
[322834442,1713375063571,-500.0,0.00035799,40]
[322834443,1713375063580,-882.29,0.00035799,40]
[322834444,1713375063590,-500.0,0.00035799,40]
[322834445,1713375063600,-500.0,0.00035799,40]
[322834446,1713375063610,-882.29,0.00035799,40]
[322834447,1713375063620,-504.26101746,0.00035799,40]
[322834448,1713375063629,-503.11922709,0.00035799,40]
[322834449,1713375063638,-882.29,0.00035799,40]
[322834450,1713375063648,-882.29,0.00035799,40]
[322834451,1713375063658,-882.29,0.00035799,40]
[322834452,1713375063667,-882.29,0.00035799,40]
[322834453,1713375063677,-882.29,0.00035799,40]
[322834454,1713375063686,-500.0,0.00035799,40]
[322834455,1713375063700,-882.29,0.00035799,40]
[322834456,1713375063709,-960.11,0.00035799,40]
[322834457,1713375063719,-882.29,0.00035799,40]
[322834458,1713375063729,-500.0,0.00035799,40]
[322834459,1713375063739,-960.11,0.00035799,40]
[322834460,1713375063748,-500.0,0.00035799,40]
[322834461,1713375063758,-882.33552827,0.00035799,40]
[322834462,1713375063768,-960.11,0.00035799,40]
[322834463,1713375063777,-500.0,0.00035799,40]
[322834464,1713375063788,-960.11,0.00035799,40]
[322834465,1713375063797,-500.0,0.00035799,40]
[322834466,1713375063807,-960.11,0.00035799,40]
[322834467,1713375063817,-500.0,0.00035799,40]
[322834468,1713375063827,-960.11,0.00035799,40]
[322834469,1713375063837,-500.0,0.00035799,40]
[322834470,1713375063847,-359.05814623,0.00035799,40]
[322834471,1713375063857,-960.11,0.00035799,40]
[322834472,1713375063867,-960.11,0.00035799,40]
[322834473,1713375063876,-960.11,0.00035799,40]
[322834474,1713375063887,-960.11,0.00035799,40]
[322834475,1713375063897,-960.11,0.00035799,40]
[322834476,1713375063907,-960.11,0.00035799,40]
[322834477,1713375063916,-960.11,0.00035799,40]
[322834478,1713375063925,-960.11,0.00035799,40]
[322834479,1713375063935,-960.11,0.00035799,40]
[322834480,1713375063949,-960.11,0.00035799,40]
[322834481,1713375063958,-960.11,0.00035799,40]
[322834482,1713375063968,-502.39639423,0.00035799,7]
[322834483,1713375063977,-960.11,0.00035799,40]
[322834484,1713375063987,-500.0,0.00035799,40]
[322834485,1713375063997,-960.11,0.00035799,40]
[322834486,1713375064007,-500.0,0.00035799,40]
[322834487,1713375064017,-960.11,0.00035799,40]
[322834488,1713375064026,-501.73800987,0.00035799,40]
[322834489,1713375064036,-960.11,0.00035799,40]
[322834490,1713375064046,-500.0,0.00035799,40]
[322834491,1713375064055,-960.11,0.00035799,40]
[322834492,1713375064064,-500.0,0.00035799,40]
[322834493,1713375064074,-960.11,0.00035799,40]
[322834494,1713375064084,-500.0,0.00035799,40]
[322834495,1713375064093,-960.2158214,0.00035799,40]
[322834496,1713375064103,-500.0,0.00035799,40]
[322834497,1713375064112,-500.0,0.00035799,40]
[322834498,1713375064121,-500.0,0.00035799,40]
[322834499,1713375064131,-230.89881068,0.00035799,40]
[322834500,1713375064142,-500.0,0.00035799,40]
[322834501,1713375064154,-504.16167406,0.00035799,40]
[322834502,1713375064163,-500.0,0.00035799,40]
[322834503,1713375064173,-500.0,0.00035799,40]
[322834504,1713375064184,-1331.21,0.00035799,40]
[322834505,1713375064198,-500.0,0.00035799,40]
[322834506,1713375064210,-1331.21,0.00035799,40]
[322834507,1713375064222,-506.85048753,0.00035799,40]
[322834508,1713375064232,-500.0,0.00035799,40]
[322834509,1713375064241,-1331.21,0.00035799,40]
[322834510,1713375064250,-500.0,0.00035799,40]
[322834511,1713375064259,-1331.21,0.00035799,40]
[322834512,1713375064269,-500.0,0.00035799,40]
[322834513,1713375064278,-1331.21,0.00035799,40]
[322834514,1713375064374,-608.79972149,0.00035799,40]
[322834515,1713375064384,-1331.21,0.00035799,40]
[322834516,1713375064394,-1331.21,0.00035799,40]
[322834517,1713375064404,-512.85,0.00035799,40]
[322834518,1713375064413,-1331.21,0.00035799,40]
[322834519,1713375064423,-512.85,0.00035799,40]
[322834520,1713375064432,-1331.21,0.00035799,40]
[322834521,1713375064441,-512.85,0.00035799,40]
[322834522,1713375064453,-1331.21,0.00035799,40]
[322834523,1713375064463,-512.85,0.00035799,40]
[322834524,1713375064472,-1331.21,0.00035799,40]
[322834525,1713375064481,-512.85,0.00035799,40]
[322834526,1713375064490,-1331.21,0.00035799,40]
[322834527,1713375064500,-512.85,0.00035799,40]
[322834528,1713375064510,-500.0,0.00035799,40]
[322834529,1713375064520,-512.85,0.00035799,40]
[322834530,1713375064529,-500.69461001,0.00035799,40]
[322834531,1713375064539,-1331.21,0.00035799,40]
[322834532,1713375064548,-512.85,0.00035799,40]
[322834533,1713375064558,-1331.21,0.00035799,40]
[322834534,1713375064568,-512.85,0.00035799,40]
[322834535,1713375064577,-1331.21,0.00035799,40]
[322834536,1713375064586,-1331.21,0.00035799,40]
[322834537,1713375064596,-1331.21,0.00035799,40]
[322834538,1713375064605,-500.0,0.00035799,40]
[322834539,1713375064615,-1331.21,0.00035799,40]
[322834540,1713375064624,-500.0,0.00035799,40]
[322834541,1713375064634,-1331.21,0.00035799,40]
[322834542,1713375064643,-500.0,0.00035799,40]
[322834543,1713375064653,-587.51,0.00035799,40]
[322834544,1713375064662,-1331.21,0.00035799,40]
[322834545,1713375064671,-500.0,0.00035799,40]
[322834546,1713375064680,-587.51,0.00035799,40]
[322834547,1713375064690,-1331.21,0.00035799,40]
[322834548,1713375064703,-513.01947707,0.00035799,40]
[322834549,1713375064712,-587.51,0.00035799,40]
[322834550,1713375064721,-1331.21,0.00035799,40]
[322834551,1713375064730,-587.51,0.00035799,40]
[322834552,1713375064740,-1064.07001638,0.00035799,40]
[322834556,1713375959182,-937.89373734,0.00023365,2]
[322834557,1713375959203,-521.03498526,0.00023366,2]
[322834558,1713375959223,-2096.98803724,0.00023366,2]
[322834559,1713375959241,-158.857458,0.00023366,2]
[322834560,1713375959262,-354.39971412,0.00023367,2]
[322834561,1713375959282,-243.24834116,0.00023367,2]
[322834562,1713375959304,-7858.55367278,0.00023367,2]
[322834563,1713375959325,-688.59429255,0.00023368,2]
[322834564,1713375959345,-623.0836212,0.00023368,2]
[322834565,1713375959366,-300.0,0.00023369,2]
[322834566,1713375959385,-305.37163019,0.00023379,2]
[322834567,1713375959407,-168.397386,0.00025309,2]
[322834568,1713375959426,-200.0,0.00025578,2]
[322834569,1713375959446,-200.0,0.00025685,15]
[322834570,1713375959467,-420.0,0.00025706,2]
[322834571,1713375959486,-417.0,0.00026418,2]
[322834572,1713375959505,-203.78682697,0.00027,2]
[322834573,1713375959525,-332.07459253,0.00027,2]
[322834574,1713375959544,-166.666666,0.00027397,2]
[322834575,1713375959563,-1000.0,0.00027397,2]
[322834576,1713375959582,-525.12331427,0.00027513,2]
[322834577,1713375959601,-2000.0,0.000279,2]
[322834578,1713375959622,-216.2036969,0.00027938,2]
[322834579,1713375959642,-178.20819793,0.00027998,2]
[322834580,1713375959661,-351.3027513,0.00027998,2]
[322834581,1713375959680,-803.65147083,0.00027998,17]
[322834582,1713375959699,-1029.79547581,0.00027999,2]
[322834583,1713375959718,-615.36206333,0.00027999,2]
[322834584,1713375959737,-358.17036401,0.00027999,2]
[322834585,1713375959757,-20849.38741235,0.00028,2]
[322834669,1713376238481,-937.89373734,0.00025892,2]
[322834670,1713376238492,-158.857458,0.00025892,2]
[322834671,1713376238502,-688.59429255,0.00025893,2]
[322834672,1713376238511,-521.03498526,0.00025893,2]
[322834673,1713376238521,-4014.21435187,0.000259,2]
[322834674,1713376238531,-168.397382,0.00026125,2]
[322834675,1713376238541,-332.07459253,0.00027,2]
[322834676,1713376238552,-300.0,0.00027396,2]
[322834677,1713376238563,-166.666666,0.00027397,2]
[322834678,1713376238573,-392.785881,0.00027397,2]
[322834679,1713376238587,-1000.0,0.00027397,2]
[322834680,1713376238597,-627.22596878,0.000279,3]
[322834681,1713376238608,-2000.0,0.000279,2]
[322834682,1713376238618,-1934.55003292,0.00027998,2]
[322834683,1713376238631,-346.26972668,0.00027998,2]
[322834684,1713376238641,-4101.76896859,0.00027998,2]
[322834685,1713376238651,-370.24786772,0.00027999,2]
[322834686,1713376238662,-1380.55315874,0.00027999,2]
[322834687,1713376238672,-500.0,0.00027999,2]
[322834688,1713376238682,-332.41435125,0.00027999,2]
[322834689,1713376238691,-500.0,0.00027999,2]
[322834690,1713376238701,-500.0,0.00027999,2]
[322834691,1713376238710,-500.0,0.00027999,2]
[322834692,1713376238720,-500.0,0.00027999,2]
[322834693,1713376238730,-500.0,0.00027999,2]
[322834694,1713376238740,-643.63282412,0.00027999,2]
[322834695,1713376238750,-500.0,0.00027999,2]
[322834696,1713376238761,-500.0,0.00027999,2]
[322834697,1713376238770,-500.0,0.00027999,2]
[322834698,1713376238779,-500.0,0.00027999,2]
[322834699,1713376238788,-500.0,0.00027999,2]
[322834700,1713376238798,-500.0,0.00027999,2]
[322834701,1713376238807,-500.0,0.00027999,2]
[322834702,1713376238816,-500.0,0.00027999,2]
[322834703,1713376238826,-500.0,0.00027999,2]
[322834704,1713376238836,-500.0,0.00027999,2]
[322834705,1713376238845,-500.0,0.00027999,2]
[322834706,1713376238855,-59150.61258765,0.00028,2]
[322834707,1713376238864,-3062.64298016,0.00028,2]
[322834708,1713376238877,-755.44188678,0.00028,2]
[322834709,1713376238886,-10102.36070328,0.00028,2]
[322834710,1713376238895,-120573.14122696,0.00028,14]
[322834711,1713376238909,-154.84515485,0.00028,2]
[322834712,1713376238919,-166.666666,0.00028038,2]
[322834713,1713376238932,-620.47718211,0.00028229,2]
[322834714,1713376238942,-169.570511,0.00028526,2]
[322834715,1713376238952,-166.666666,0.00028679,2]
[322834716,1713376238961,-5000.0,0.00029,2]
[322834717,1713376238970,-653.04432347,0.00029197,2]
[322834718,1713376238980,-465.54275038,0.00029197,2]
[322834719,1713376238990,-26684.49115494,0.00029198,2]
[322834720,1713376239000,-150.95011599,0.00029198,2]
[322834721,1713376239010,-166.666666,0.00029321,2]
[322834722,1713376239020,-417.0,0.00029418,2]
[322834723,1713376239030,-620.02385911,0.00029641,2]
[322834724,1713376239039,-498.8613407,0.000299,2]
[322834725,1713376239049,-498.8613407,0.000299,2]
[322834726,1713376239058,-498.8613407,0.000299,2]
[322834727,1713376239067,-498.8613407,0.000299,2]
[322834728,1713376239077,-498.8613407,0.000299,2]
[322834729,1713376239087,-498.8613407,0.000299,2]
[322834730,1713376239096,-498.8613407,0.000299,2]
[322834731,1713376239105,-498.8613407,0.000299,2]
[322834732,1713376239115,-498.8613407,0.000299,2]
[322834733,1713376239126,-498.8613407,0.000299,2]
[322834734,1713376239135,-498.8613407,0.000299,2]
[322834735,1713376239145,-498.8613407,0.000299,2]
[322834736,1713376239154,-498.8613407,0.000299,2]
[322834737,1713376239163,-166.666666,0.00029962,2]
[322834738,1713376239173,-1351.51924404,0.0003,4]
[322834739,1713376239182,-258.39586582,0.0003,4]
[322834740,1713376239191,-155.28288805,0.0003,4]
[322834741,1713376239201,-154.84515485,0.0003,2]
[322834742,1713376239210,-274.0,0.0003,2]
[322834743,1713376239219,-420.0,0.00030136,2]
[322834744,1713376239228,-150.0,0.00030198,2]
[322834745,1713376239237,-166.666666,0.00030603,2]
[322834746,1713376239246,-320.4553623,0.000308,10]
[322834747,1713376239256,-4014.21435187,0.000309,2]
[322834748,1713376239265,-620.00119296,0.00031123,2]
[322834749,1713376239274,-150.0,0.00031198,2]
[322834750,1713376239284,-5000.0,0.00032,2]
[322834751,1713376239293,-191.18536531,0.00032,4]
[322834752,1713376239304,-417.0,0.00032418,2]
[322834753,1713376239314,-620.00005965,0.00032679,2]
[322834754,1713376239324,-5200.0,0.000329,9]
[322834755,1713376239333,-274.0,0.00033,2]
[322834756,1713376239344,-587.0,0.00033149,2]
[322834757,1713376239353,-392.785881,0.00033165,2]
[322834758,1713376239362,-2000.0,0.000337,7]
[322834759,1713376239374,-465.62426375,0.00034,4]
[322834760,1713376239384,-150.84915085,0.00034178,2]
[322834761,1713376239393,-250.24063936,0.00034178,2]
[322834762,1713376239403,-2000.0,0.000347,8]
[322834763,1713376239413,-301.6983017,0.00034753,4]
[322834764,1713376239422,-412.8252268,0.00034842,2]
[322834765,1713376239432,-853.2124065,0.00035,2]
[322834766,1713376239441,-214.26513963,0.00035,4]
[322834767,1713376239450,-6874.43086894,0.00035,4]
[322834768,1713376239460,-1000.0,0.00035,2]
[322834769,1713376239470,-603.3966034,0.00035337,7]
[322834770,1713376239481,-417.0,0.00035418,2]
[322834771,1713376239496,-1210.0,0.00035597,20]
[322834772,1713376239506,-3599.77611267,0.00035615,2]
[322834773,1713376239515,-402.23062137,0.00035616,2]
[322834774,1713376239526,-1277.499799,0.00035616,120]
[322834775,1713376239536,-150.5,0.0003562,35]
[322834776,1713376239546,-150.5,0.0003563,35]
[322834777,1713376239556,-150.5,0.0003564,35]
[322834778,1713376239566,-7195.45794981,0.00035641,2]
[322834779,1713376239576,-477.35,0.00035643,2]
[322834780,1713376239586,-477.35,0.00035643,2]
[322834781,1713376239595,-477.35,0.00035643,2]
[322834782,1713376239606,-477.35,0.00035643,2]
[322834783,1713376239615,-477.35,0.00035643,2]
[322834784,1713376239628,-477.35,0.00035643,2]
[322834785,1713376239637,-477.35,0.00035643,2]
[322834786,1713376239648,-477.35,0.00035643,2]
[322834787,1713376239659,-477.35,0.00035643,2]
[322834788,1713376239668,-477.35,0.00035643,2]
[322834789,1713376239678,-477.35,0.00035643,2]
[322834790,1713376239688,-477.35,0.00035643,2]
[322834791,1713376239697,-477.35,0.00035643,2]
[322834792,1713376239706,-477.35,0.00035643,2]
[322834793,1713376239716,-477.35,0.00035643,2]
[322834794,1713376239725,-477.35,0.00035643,2]
[322834795,1713376239735,-477.35,0.00035643,2]
[322834796,1713376239745,-477.35,0.00035643,2]
[322834797,1713376239754,-477.35,0.00035643,2]
[322834799,1713376239861,-477.35,0.00035643,2]
[322834800,1713376239874,-151.0,0.00035643,2]
[322834801,1713376239884,-151.0,0.00035643,2]
[322834802,1713376239893,-151.0,0.00035643,2]
[322834803,1713376239902,-151.0,0.00035643,2]
[322834804,1713376239912,-151.0,0.00035643,2]
[322834805,1713376239921,-192.496119,0.00035643,2]
[322834806,1713376239931,-153.0,0.00035678,2]
[322834807,1713376239941,-165.0,0.00035685,35]
[322834809,1713376239951,-156.0,0.00035685,35]
[322834811,1713376239961,-165.0,0.00035695,35]
[322834813,1713376239971,-156.0,0.00035695,35]
[322834815,1713376239980,-2000.0,0.000357,9]
[322834816,1713376239990,-165.0,0.00035705,35]
[322834817,1713376240000,-156.0,0.00035705,35]
[322834818,1713376240009,-151.0,0.00035715,2]
[322834819,1713376240019,-151.0,0.00035715,2]
[322834820,1713376240029,-151.0,0.00035715,2]
[322834822,1713376240039,-151.0,0.00035715,2]
[322834823,1713376240048,-154.042065,0.00035715,2]
[322834825,1713376240058,-174.228559,0.00035715,2]
[322834827,1713376240067,-174.228559,0.00035715,2]
[322834829,1713376240077,-174.228559,0.00035715,2]
[322834831,1713376240087,-174.228559,0.00035715,2]
[322834833,1713376240097,-174.228559,0.00035715,2]
[322834835,1713376240106,-174.228559,0.00035715,2]
[322834837,1713376240116,-174.228559,0.00035715,2]
[322834839,1713376240130,-174.228559,0.00035715,2]
[322834841,1713376240139,-174.228559,0.00035715,2]
[322834843,1713376240148,-174.228559,0.00035715,2]
[322834844,1713376240158,-174.228559,0.00035715,2]
[322834845,1713376240167,-174.228559,0.00035715,2]
[322834846,1713376240177,-174.228559,0.00035715,2]
[322834847,1713376240186,-174.228559,0.00035715,2]
[322834848,1713376240196,-174.228559,0.00035715,2]
[322834849,1713376240205,-174.228559,0.00035715,2]
[322834850,1713376240215,-174.228559,0.00035715,2]
[322834851,1713376240225,-174.228559,0.00035715,2]
[322834852,1713376240234,-174.228559,0.00035715,2]
[322834853,1713376240244,-174.228566,0.00035715,2]
[322834855,1713376240253,-1471.007102,0.00035715,2]
[322834857,1713376240263,-1471.007102,0.00035715,2]
[322834858,1713376240272,-1471.007102,0.00035715,2]
[322834859,1713376240281,-1471.007102,0.00035715,2]
[322834860,1713376240290,-1471.007102,0.00035715,2]
[322834862,1713376240300,-1471.007102,0.00035715,2]
[322834864,1713376240310,-1471.007102,0.00035715,2]
[322834865,1713376240320,-1471.007102,0.00035715,2]
[322834866,1713376240329,-1471.007102,0.00035715,2]
[322834867,1713376240338,-1471.007102,0.00035715,2]
[322834868,1713376240349,-1471.007102,0.00035715,2]
[322834869,1713376240358,-1471.007102,0.00035715,2]
[322834870,1713376240368,-1471.007102,0.00035715,2]
[322834871,1713376240380,-1471.007102,0.00035715,2]
[322834872,1713376240390,-1471.007102,0.00035715,2]
[322834873,1713376240400,-1471.007102,0.00035715,2]
[322834875,1713376240409,-1471.007102,0.00035715,2]
[322834876,1713376240418,-1471.007102,0.00035715,2]
[322834877,1713376240427,-1471.007102,0.00035715,2]
[322834878,1713376240436,-1471.007102,0.00035715,2]
[322834879,1713376240445,-151.0,0.00035715,2]
[322834880,1713376240455,-269.164131,0.00035715,2]
[322834881,1713376240465,-171.342359,0.00035715,2]
[322834883,1713376240474,-151.0,0.00035715,2]
[322834885,1713376240484,-151.0,0.00035715,2]
[322834887,1713376240494,-151.0,0.00035715,2]
[322834889,1713376240505,-151.0,0.00035715,2]
[322834891,1713376240514,-151.0,0.00035715,2]
[322834893,1713376240523,-151.0,0.00035715,2]
[322834895,1713376240534,-151.0,0.00035715,2]
[322834897,1713376240544,-193.918794,0.00035715,2]
[322834899,1713376240553,-175.749081,0.00035715,2]
[322834901,1713376240562,-152.976705,0.00035715,2]
[322834903,1713376240571,-151.359188,0.00035715,2]
[322834905,1713376240581,-151.0,0.00035715,2]
[322834908,1713376240591,-151.0,0.00035715,2]
[322834909,1713376240600,-151.0,0.00035715,2]
[322834911,1713376240609,-673.518455,0.00035715,2]
[322834914,1713376240618,-673.518455,0.00035715,2]
[322834915,1713376240631,-673.518455,0.00035715,2]
[322834918,1713376240640,-673.518455,0.00035715,2]
[322834920,1713376240649,-673.518455,0.00035715,2]
[322834922,1713376240659,-673.518455,0.00035715,2]
[322834924,1713376240668,-673.518455,0.00035715,2]
[322834926,1713376240677,-673.518455,0.00035715,2]
[322834928,1713376240686,-673.518455,0.00035715,2]
[322834930,1713376240695,-673.518455,0.00035715,2]
[322834931,1713376240704,-673.518455,0.00035715,2]
[322834933,1713376240713,-673.518455,0.00035715,2]
[322834935,1713376240722,-673.518455,0.00035715,2]
[322834937,1713376240731,-673.518455,0.00035715,2]
[322834939,1713376240741,-673.518455,0.00035715,2]
[322834941,1713376240750,-673.518455,0.00035715,2]
[322834943,1713376240759,-673.518455,0.00035715,2]
[322834945,1713376240768,-673.518455,0.00035715,2]
[322834947,1713376240778,-673.518455,0.00035715,2]
[322834950,1713376240792,-673.51845,0.00035715,2]
[322834952,1713376240806,-151.0,0.00035715,2]
[322834955,1713376240820,-151.0,0.00035715,2]
[322834957,1713376240831,-151.0,0.00035715,2]
[322834960,1713376240843,-151.0,0.00035715,2]
[322834962,1713376240857,-151.0,0.00035715,2]
[322834964,1713376240869,-151.0,0.00035715,2]
[322834967,1713376240884,-500.0,0.00035717,15]
[322834969,1713376240897,-500.0,0.00035717,15]
[322834971,1713376240909,-500.0,0.00035717,15]